Cogmind - Beta 16.1 @@@ ROGUE MODE // 2026.06.22 @ 22:40:53 Player: Lolterzard Result: Destroyed by D-53 Grenadier with Mini Grenade Launcher Performance ------------- Evolutions (0) 0 Regions Visited (2) 400 Robots Destroyed (20) 100 Value Destroyed (159) 159 Prototype IDs (1) 20 Alien Tech Used (0) 0 Bonus (0) 0 TOTAL SCORE: 679 Bonus ------- None Cogmind --------- Core Integrity 0/250 Matter 295/300 Energy 90/100 System Corruption 0% Temperature Cool (0) Movement Core (1350) Ox26 Location -10/Mines Parts ------- > --- POWER (1) -------- (None) > --- PROPULSION (2) --- (None) > --- UTILITY (2) ------ Huge Storage Unit Seismic Detector > --- WEAPON (2) ------- (None) > --- INVENTORY (25) --- Light Ion Engine Light Ion Engine Light Treads Light Treads Wheel Wheel Wheel High-capacity Storage Unit Compact Matter Pod (150) Medium Laser Medium Laser Medium Laser Medium Laser Medium Laser Medium Laser Advanced Beam Cannon Advanced Beam Cannon Light Assault Rifle Light Assault Rifle Datajack Mining Claw Peak State ------------ > --- POWER ------------ Ion Engine > --- PROPULSION ------- Armored Wheel Armored Wheel > --- UTILITY ---------- Huge Storage Unit Seismic Detector > --- WEAPON ----------- Light Assault Rifle Light Assault Rifle > --- INVENTORY -------- Light Ion Engine Light Treads Light Treads Wheel Wheel Wheel Wheel Armored Wheel Armored Wheel Large Storage Unit High-capacity Storage Unit Seismic Detector Medium Laser Medium Laser Medium Laser Medium Laser Medium Laser Small Laser Advanced Beam Cannon Advanced Beam Cannon Light Assault Rifle Light Assault Rifle Datajack Mining Claw [Rating: 12] Favorites ----------- Power Light Ion Engine Engine Light Ion Engine Propulsion Armored Wheel Treads Light Treads Wheel Armored Wheel Utility Seismic Detector Device Seismic Detector Storage Huge Storage Unit Weapon Light Assault Rifle Energy Cannon Advanced Beam Cannon Ballistic Gun Light Assault Rifle Build | -11 -10 -10 ------- Run | Yrd Mat Min Slots Evolved . | . . . Power . | . . . Propulsion . | . . . Utility . | . . . Weapon . | . . . Parts Attached 21 | 7 11 3 Power 2 | 1 1 . Engine 2 | 1 1 . Core . | . . . Reactor . | . . . Propulsion 7 | 2 2 3 Treads 2 | 2 . . Leg . | . . . Wheel 5 | . 2 3 Hover . | . . . Flight . | . . . Utility 6 | 2 4 . Device 2 | 1 1 . Storage 4 | 1 3 . Processor . | . . . Hackware . | . . . Protection . | . . . Artifact . | . . . Weapon 6 | 2 4 . Energy Gun . | . . . Energy Cannon 1 | . 1 . Ballistic Gun 5 | 2 3 . Ballistic Cannon . | . . . Launcher . | . . . Special Weapon . | . . . Impact Weapon . | . . . Slashing Weapon . | . . . Piercing Weapon . | . . . Special Melee Weapon . | . . . Unidentified Prototypes 1 | . 1 . Parts Lost 8 | . . 8 Power 1 | . . 1 Propulsion 5 | . . 5 Utility . | . . . Weapon 2 | . . 2 Highest Loss Streak 8 | . . 8 To Critical Strikes . | . . . Average Backups 15 | 4 16 24 Power 1 | . 1 2 Propulsion 6 | 2 6 7 Utility 1 | . 1 2 Weapon 5 | . 5 11 Tool/Special . | . . . Unused Backups 19 | . . 19 Power 2 | . . 2 Propulsion 3 | . . 3 Utility 1 | . . 1 Weapon 12 | . . 12 Tool/Special 1 | . . 1 Average Slot Usage (%) 99 | . 99 96 Engine 13 | . 14 13 Treads 10 | . 13 . Wheel 17 | . 14 27 Device 14 | . 14 14 Storage 14 | . 14 14 Ballistic Gun 27 | . 27 26 Peak Build Rating 12 | 7 12 12 Average Rating 9 | 5 9 11 On Entrance 6 | . 7 12 Avg Prop Armor Cover (%) 24 | 24 . . Naked Turns . | . . . Heaviest Build 88 | 11 88 88 Greatest Support 40 | 40 40 24 Greatest Overweight (x) 8 | 3 3 8 Average Overweight (x) 1 | . 1 3 Largest Inventory Capacity 25 | 8 25 25 Average Capacity 18 | 7 20 25 Most Carried 25 | 6 25 25 Average Carried 15 | 4 16 24 Final Capacity 25 | 8 25 25 Final Carried 25 | 6 25 21 Class Distribution -------------------- 100% | Mutant Dominant Class ---------------- Mutant | -10/Materials Mutant | -10/Mines Resources | -11 -10 -10 ----------- Run | Yrd Mat Min Matter Collected 526 | 314 203 9 Remotely . | . . . Salvage Created 445 | 182 252 11 Parts 42 | 15 26 1 Haulers Intercepted 1 | . 1 . Recyclers Shooed 1 | . 1 . Parts Field Recycled . | . . . Retrieved Matter . | . . . Parts Self-Destructed . | . . . Prevented . | . . . Parts Restored . | . . . Kills | -11 -10 -10 ------- Run | Yrd Mat Min Combat Hostiles Destroyed 9 | . 8 1 Guns 9 | . 8 1 Classes Destroyed 7 | 3 4 . Worker 3 | 2 1 . Builder 1 | . 1 . Tunneler 3 | 3 . . Hauler 1 | . 1 . Recycler 1 | 1 . . Watcher 2 | . 2 . Swarmer 9 | . 8 1 Best Kill Streak 4 | 3 4 1 Combat Bots Only 3 | . 3 1 Max Kills in Single Turn 2 | 1 2 1 Gunslinging 1 | . 1 . Exploded . | . . . Melee . | . . . Uniques/NPCs Destroyed . | . . . Combat | -11 -10 -10 -------- Run | Yrd Mat Min Hostile Shots Fired 84 | . 65 19 Missed 21 | . 18 3 Hits 63 | . 47 16 Melee 2 | . . 2 Projectile 61 | . 47 14 AOE 20 | . . 20 Critical Strikes 1 | . 1 . Damage Taken 1242 | . 393 849 Core 259 | . 92 167 Absorbed by Shields . | . . . Core Remaining (%) 100 | 100 . . Volleys Fired 74 | 22 49 3 Largest 2 | 2 2 2 Hottest 40 | 40 40 40 Shots Fired 148 | 44 98 6 Gun 148 | 44 98 6 Cannon . | . . . Launcher . | . . . Special . | . . . Kinetic 148 | 44 98 6 Thermal . | . . . Explosive . | . . . Electromagnetic . | . . . Robot Hit Streak 8 | 5 8 4 Robot Miss Streak 6 | 3 6 5 Penetration Max . | . . . Secondary Targets 2 | . 2 . Max Gunslinging Chain 1 | . 1 . Shots Hit Robots 81 | 26 51 4 Core Hits 36 | 11 23 2 Critical Kills . | . . . Critical Parts Destroyed . | . . . Critical Strikes . | . . . Melee Attacks . | . . . Impact . | . . . Slashing . | . . . Piercing . | . . . Sneak Attacks . | . . . Combat Hostiles . | . . . Follow-up Attacks . | . . . Damage Inflicted 668 | 222 415 31 Guns 660 | 222 407 31 Cannons . | . . . Explosions . | . . . Melee . | . . . Ramming 8 | . 8 . Kinetic 660 | 222 407 31 Thermal . | . . . Explosive . | . . . Electromagnetic . | . . . Impact . | . . . Slashing . | . . . Piercing . | . . . Highest Corruption . | . . . Average Corruption . | . . . Corruption Purged . | . . . Corruption Blocked . | . . . Overload Shots . | . . . Overflow Damage . | . . . Projectiles . | . . . Explosions . | . . . Melee . | . . . Knockbacks . | . . . Impact . | . . . Kinetic . | . . . Secondary . | . . . Self-Inflicted Damage 4 | . 4 . Shots . | . . . Rammed 2 | . 2 . Targets Rammed 2 | . 2 . Kicked . | . . . Crushed . | . . . Highest Temperature . | . . . Average Temperature . | . . . Received Heat Transfer . | . . . Siege Activations . | . . . Martial Activations . | . . . Shielding Activations . | . . . Robots Disrupted . | . . . Combat Hostiles . | . . . Robots Corrupted . | . . . Combat Hostiles . | . . . Parts Fried . | . . . Impact Corruptions . | . . . Robots Melted . | . . . Combat Hostiles . | . . . Parts Melted . | . . . Heat Transferred . | . . . Parts Sabotaged . | . . . Parts Stolen . | . . . Parts Stripped . | . . . Power Chain Reactions . | . . . Alert | -11 -10 -10 ------- Run | Yrd Mat Min Maximum Alert Level . | . . . Low Security (%) 100 | 100 100 100 Level 1 . | . . . Level 2 . | . . . Level 3 . | . . . Level 4 . | . . . Level 5 . | . . . High Security . | . . . Max Security . | . . . Peak Influence 120 | 10 120 22 Initial 22 | . . 22 Average 17 | 1 28 3 Influence Increases 307 | 30 227 50 Destroy 0b10 Robot/C 180 | . 160 20 Destroy 0b10 Robot/NC 55 | 30 25 . Destroy Leader 26 | . 26 . Successful Hack 16 | . 16 . Lose Combat Pursuer 30 | . . 30 Influence Decreases 307 | 30 170 107 Entered New Map 35 | . . 35 Time Decay 232 | 30 170 32 Lost Part 40 | . . 40 Squads Dispatched . | . . . Investigation . | . . . Extermination . | . . . Reinforcement . | . . . Assault . | . . . Garrison . | . . . Intercept . | . . . Searches Triggered . | . . . Construction Impeded . | . . . Haulers Reinforced . | . . . Active Scanning Responses . | . . . Cargo Convoy Interrupts . | . . . Stealth | -11 -10 -10 --------- Run | Yrd Mat Min Distress Signals . | . . . Communications Jammed . | . . . Distress Signals . | . . . Times Spotted 33 | . 19 14 Peak Tracking Total 16 | . 3 16 Tactical Retreats 1 | . . 1 Traps | -11 -10 -10 ------- Run | Yrd Mat Min Traps Triggered . | . . . Indirectly . | . . . Trap Hack Attempts . | . . . Triggered . | . . . Disarmed . | . . . Reprogrammed . | . . . Reused . | . . . Traps Extracted . | . . . Installed . | . . . Triggered . | . . . Machines | -11 -10 -10 ---------- Run | Yrd Mat Min Machines Disabled . | . . . Max in Single Turn . | . . . Machines Repaired . | . . . Machines Dismantled . | . . . Machines Sabotaged . | . . . Overloaded Fab Kills . | . . . Hacking | -11 -10 -10 --------- Run | Yrd Mat Min Machines Accessed 3 | . 3 . Terminals 3 | . 3 . Fabricators . | . . . Repair Stations . | . . . Recycling Units . | . . . Scanalyzers . | . . . Garrison Access . | . . . Total Hacks 4 | . 4 . Successful 1 | . 1 . Failed 3 | . 3 . Catastrophic 1 | . 1 . Database Lockouts . | . . . Manual 1 | . 1 . Terminals 4 | . 4 . Fabricators . | . . . Repair Stations . | . . . Recycling Units . | . . . Scanalyzers . | . . . Garrison Access . | . . . Terminal Hacks 1 | . 1 . Branch Access Points 1 | . 1 . Fabricator Hacks . | . . . Repair Station Hacks . | . . . Recycling Unit Hacks . | . . . Scanalyzer . | . . . Garrison Access Hacks . | . . . Unauthorized Hacks . | . . . Terminals . | . . . Fabricators . | . . . Repair Stations . | . . . Recycling Units . | . . . Scanalyzers . | . . . Garrison Access . | . . . Data Cores Recovered . | . . . Used . | . . . Hacking Detections 1 | . 1 . Full Trace Events 1 | . 1 . Feedback Events . | . . . Feedback Blocked . | . . . Robot Schematics Acquired . | . . . Robots Built . | . . . Authchips . | . . . Time . | . . . Total Robot Build Rating . | . . . Part Schematics Acquired . | . . . Parts Built . | . . . Authchips . | . . . Time . | . . . Total Part Build Rating . | . . . Part Studies Acquired . | . . . Parts Repaired . | . . . Time . | . . . Parts Recycled . | . . . Recycled Matter . | . . . Retrieved Matter . | . . . Retrieved Components . | . . . Parts Scanalyzed . | . . . Part Schematics Acquired . | . . . Parts Damaged . | . . . Bothacking | -11 -10 -10 ------------ Run | Yrd Mat Min Used RIF Installer . | . . . Robots Hacked . | . . . Non-combat . | . . . Combat . | . . . Robot Hacks Applied . | . . . Relay Couplers Released . | . . . Fabnet Peak Effective % . | . . . Robots Rewired . | . . . Allies Hacked . | . . . Hacks Repelled . | . . . Allies | -11 -10 -10 -------- Run | Yrd Mat Min Total Allies . | . . . Largest Group . | . . . Highest-Rated Group . | . . . Highest-Rated Ally . | . . . Total Orders . | . . . Ally Attacks . | . . . Total Damage . | . . . Kills . | . . . Allies Corrupted . | . . . Allies Melted . | . . . Intel | -11 -10 -10 ------- Run | Yrd Mat Min Active Infowar (turns) 962 | 74 618 270 Seismic 962 | 74 618 270 Robot Analysis Total . | . . . Derelict Logs Recovered 1 | . . 1 Drone Launches . | . . . Drone Recoveries . | . . . Exploration | -11 -10 -10 ------------- Run | Yrd Mat Min Turns Passed 1374 | 303 801 270 Spaces Moved 751 | 153 409 189 Core 30 | 30 . . Treads 287 | 123 164 . Legs . | . . . Wheels 434 | . 245 189 Hover . | . . . Flight . | . . . Fastest Speed 50 | 50 135 135 Average Speed 148 | 150 154 136 Slowest Speed 240 | 200 240 200 Overloaded Moves . | . . . Propulsion Burnouts . | . . . Robots Hopped . | . . . Potential Cave-ins . | . . . Cave-ins Triggered . | . . . Exploration Rate (%) 38 | 7 65 44 Regions Visited 2 Branch Regions 1 Pre-discovered Areas . | . . . Known Exits Taken 1 | . 1 . Unknown Exits Taken 1 | 1 . . Scrap Searched 1 | . . 1 Spaces Dug . | . . . Terrain Destroyed . | . . . Melee . | . . . Projectile . | . . . AOE . | . . . Terrain Rammed . | . . . Walls Destroyed . | . . . Machines Disabled . | . . . Actions | -11 -10 -10 --------- Run | Yrd Mat Min Total 888 | 188 502 198 Wait 6 | . 6 . Move 749 | 152 408 189 Hop . | . . . Pick Up 27 | 7 19 1 Fast Attach 7 | 6 1 . Attach 5 | 1 1 3 Detach . | . . . Swap 9 | . 9 . Drop 9 | . 7 2 Fire 74 | 22 49 3 Melee . | . . . Ram 2 | . 2 . Kick . | . . . Crush . | . . . Escape Stasis . | . . . Rewire . | . . . Trap . | . . . Miscellaneous . | . . . Route ------- -11/Scrapyard -10/Materials (discovered 5 exits: [*Mat x2] / *Min x2 / [*Sub]) -10/Mines (discovered 2 exits: [*Mat x2]) History --------- Turn | Location | Event 8 | -11/Scrapyard | Discovered new exit (range 16) 304 | -11/Scrapyard | Entered Materials 305 | -10/Materials | Build established: Mutant 324 | -10/Materials | Identified exit to Mines 386 | -10/Materials | Discovered new exit (range 7) 503 | -10/Materials | Discovered new exit (range 13) 779 | -10/Materials | Discovered new exit (range 5) 1105 | -10/Materials | Entered Mines 1283 | -10/Mines | Discovered new exit (range 6) 1290 | -10/Mines | Learned 4 Materials zone layouts 1299 | -10/Mines | Discovered new exit (range 16) 1343 | -10/Mines | Assembled infested the area 1348 | -10/Mines | Assisted by a Guerilla fighting off Assembled 1361 | -10/Mines | Core integrity fell below 50% 1373 | -10/Mines | Core integrity fell below 20% 1375 | -10/Mines | Destroyed by D-53 Grenadier with Mini Grenade Launcher Last Messages --------------- 01351_ R-06 Scavenger destroyed. 01352_ K-01 Serf collects debris. 01353_ HV Slug penetrates Wall. 01353_ 9K-SL2(h) destroyed. 01353_ Arm. Wheel destroyed. 01356_ Lgt. Assault Rifle destroyed. 01357_ K-01 Serf collects debris. 01362_ as-08654 destroyed. 01363_ K-01 Serf collects debris. 01365_ The unstable cave ceiling collapses. 01367_ Lgt. Assault Rifle destroyed. 01368_ Arm. Wheel destroyed. 01370_ Knocked back. 01372_ as-82759 destroyed. 01372_ as-64690 destroyed. 01373_ The unstable cave ceiling collapses. 01373_ Acquired 5 matter. 01373_ Arm. Wheel destroyed. 01374_ K-01 Serf collects debris. 01375_ Wheel destroyed. Map ----- +----------------------------------------------------+ | ?????????????????????????????????????????????????? | | ?????????????????????????????????????????????????? | | ?????????????????????????????????????????????????? | | ?????????????????????????????????????????????????? | | ?????????????????????????????????????????????????? | | ?????????????????????????????????????????????????? | | ?????????????????????????????????????????????????? | | ?????????????????????????????????????????????????? | | ?????????????????????????????????????????????????? | | ?????????????????????????????????????????????????? | | ?????????????????????????????????????????????????? | | ?????????????????????????????????????????????????? | | ?????????????????????????????????????????????????? | | ?????????????????????????????????????????????????? | | ?????????????????????????????????????????????????? | | ???????????????????????????????##????????????????? | | ????????? ?????????##?????????? ##???????????????? | | ?????????? ???????? ????????? ####????????????? | | #####????? "??????? ???????? ????????????? | | ##???? "??????# #???????? ??????????????? | | #???? ??????# ####????a #???????????????? | | # #????# ??????# ## ####a #????????????????? | | ##????#=??????#a ##???????????????? | | #???###%??????# #???????????????? | | ##??#"" ####?## a #???????????????? | | #??## ### @ #???????????????? | | #??# ### #???????????????? | | ## #??# ##???????????????????? | | ?## ##?## #????????????????????? | | ?## ### % # ##????????????????????? | | ## ## k # ###?????????????????????? | | # ## ###???????????????????????? | | ### dd ##?????????????????????????? | | ### ##?## ##??????????????????????????? | | ### ##??# #???????????????????????????? | | #### ##???????????????????????????? | | % ##????????????????????????????? | |